bitfinex-derivatives/quotes_ETHF0:USTF0_20251009
["timestamp","ask_amount","ask_price","bid_price","bid_amount"]
[1760040853974,3.84304244,4334.2,4334.1,41.78593141]
[1760040854470,3.61204244,4334.2,4334.1,41.78593141]
[1760040854670,3.50534244,4334.2,4334.1,41.78593141]
[1760040854867,3.84304244,4334.2,4334.1,41.78593141]
[1760040858776,3.61204244,4334.2,4334.1,41.78593141]
[1760040858975,3.84304244,4334.2,4334.1,41.78593141]
[1760040860264,0.00196421,4334.2,4334.1,41.78593141]
[1760040862970,0.00196421,4334.2,4334.1,46.78593141]
[1760040863367,0.3377,4335.2,4335.1,0.63196]
[1760040863573,3.2078,4335.3,4335.2,0.41495]
[1760040863870,3.2078,4335.3,4335.2,1.20075]
[1760040864378,3.2078,4335.3,4335.2,42.00075]
[1760040864678,3.21025635,4335.3,4335.2,42.00075]
[1760040864879,0.00245635,4335.3,4335.2,42.00075]
[1760040865278,0.34015635,4335.3,4335.2,42.00075]
[1760040868275,0.880395,4335.3,4335.2,42.00075]
[1760040877382,0.542695,4335.3,4335.2,42.00075]
[1760040877687,0.856895,4335.3,4335.2,42.00075]
[1760040884884,0.218,4335.0,4334.8,0.3379]
[1760040885090,0.769,4334.8,4334.7,0.415]
[1760040885290,1.31051451,4334.8,4334.7,0.415]
[1760040885493,1.31051451,4334.8,4334.7,41.9849]
[1760040887095,1.31051451,4334.8,4334.7,41.5699]
[1760040887394,1.31051451,4334.8,4334.7,41.0169]
[1760040887599,1.31051451,4334.8,4334.7,41.3585]
[1760040888196,4.37866575,4334.8,4334.7,40.8]
[1760040888494,7.58646575,4334.8,4334.7,40.8]
[1760040888988,0.2226,4334.3,4334.2,0.231]
[1760040889195,3.9768,4334.3,4334.2,0.231]
[1760040889393,4.51831451,4334.3,4334.2,0.5585]
[1760040889595,4.51831451,4334.3,4334.2,41.77355]
[1760040891494,1.31051451,4334.3,4334.2,41.77355]
[1760040893995,1.31301548,4334.3,4334.2,41.3585]
[1760040895300,1.31301548,4334.3,4334.2,41.77355]
[1760040896100,0.54401548,4334.3,4334.2,41.77355]
[1760040897194,0.2226,4334.5,4334.4,0.7699]
[1760040897499,0.76639339,4334.5,4334.4,0.7699]
[1760040897998,1.09129339,4334.5,4334.4,0.7699]
[1760040898695,0.3249,4334.4,4334.2,41.1416]
[1760040898997,0.3249,4334.4,4334.1,0.00207141]
[1760040898998,0.769,4334.2,4334.1,0.00207141]
[1760040899200,0.769,4334.2,4334.1,0.77197141]
[1760040899201,1.31279339,4334.2,4334.1,0.77197141]
[1760040899395,4.57553001,4334.2,4334.1,41.57197141]
[1760040899594,4.57553001,4334.2,4334.1,41.01897141]
[1760040899790,4.57553001,4334.2,4334.1,40.80207141]
[1760040900896,4.57553001,4334.2,4334.1,41.14367141]
[1760040901096,4.34453001,4334.2,4334.1,41.55873141]
[1760040901300,4.57553001,4334.2,4334.1,41.55873141]
[1760040901598,3.79813001,4334.2,4334.1,41.55873141]
[1760040901790,0.54379339,4334.2,4334.1,41.55873141]
[1760040902201,0.95884339,4334.2,4334.1,41.55873141]
[1760040902497,1.28374339,4334.2,4334.1,41.55873141]
[1760040903808,0.86869339,4334.2,4334.1,41.55873141]
[1760040904393,0.54379339,4334.2,4334.1,41.55873141]
[1760040904797,0.95884339,4334.2,4334.1,41.55873141]
[1760040904998,0.95884339,4334.2,4334.1,41.14367141]
[1760040905303,1.28374339,4334.2,4334.1,41.14367141]
[1760040905504,1.28374339,4334.2,4334.1,41.55873141]
[1760040907298,0.86869339,4334.2,4334.1,41.55873141]
[1760040907802,1.28374339,4334.2,4334.1,41.55873141]
[1760040907999,0.86869339,4334.2,4334.1,41.55873141]
[1760040908204,1.28374339,4334.2,4334.1,41.55873141]
[1760040908508,0.86869339,4334.2,4334.1,41.55873141]
[1760040908707,0.54379339,4334.2,4334.1,41.55873141]
[1760040908907,0.95884339,4334.2,4334.1,41.55873141]
[1760040909508,1.29184339,4334.2,4334.1,41.55873141]
[1760040910203,0.54379339,4334.2,4334.1,41.55873141]
[1760040911605,0.95884339,4334.2,4334.1,41.55873141]
[1760040912012,0.54379339,4334.2,4334.1,41.55873141]
[1760040913110,0.87679339,4334.2,4334.1,41.55873141]
[1760040913509,0.87679339,4334.2,4334.1,41.14367141]
[1760040913709,0.87679339,4334.2,4334.1,41.55873141]
[1760040915313,1.52284339,4334.2,4334.1,41.55873141]
[1760040916614,1.29184339,4334.2,4334.1,41.55873141]
[1760040916815,1.52284339,4334.2,4334.1,41.55873141]
[1760040918012,1.52284339,4334.2,4334.1,41.14367141]
[1760040918411,1.52284339,4334.2,4334.1,41.55873141]
[1760040926223,0.54379339,4334.2,4334.1,41.55873141]
[1760040927331,0.95884339,4334.2,4334.1,41.55873141]
[1760040927522,1.18984339,4334.2,4334.1,41.55873141]
[1760040928425,1.52284339,4334.2,4334.1,41.55873141]
[1760040931234,1.18984339,4334.2,4334.1,41.55873141]
[1760040931434,1.52284339,4334.2,4334.1,41.55873141]
[1760040931633,1.18984339,4334.2,4334.1,41.55873141]
[1760040932831,3.2078,4334.9,4334.8,0.86139]
[1760040933134,3.75304766,4334.9,4334.8,1.20609]
[1760040933335,0.00245635,4335.3,4335.2,1.20605]
[1760040933529,0.231,4335.9,4335.8,0.2322]
[1760040933732,1.33403286,4335.9,4335.8,0.7911]
[1760040934236,1.33403286,4335.9,4335.8,41.5911]
[1760040934531,1.33672928,4335.9,4335.8,41.5911]
[1760040935131,4.31960526,4335.9,4335.8,41.0322]
[1760040935334,0.7696,4335.2,4335.1,0.3447]
[1760040935638,7.38126036,4335.2,4334.8,0.231]
[1760040935834,0.77143286,4335.1,4335.0,0.5524]
[1760040936037,1.32463286,4335.1,4335.0,0.5524]
[1760040936238,3.7404275,4335.1,4335.0,41.3524]
[1760040936439,4.28256047,4335.1,4335.0,41.3524]
[1760040936635,3.7404275,4335.1,4335.0,41.4803]
[1760040936832,2.9608275,4335.1,4335.0,41.4803]
[1760040937033,3.2078,4335.2,4335.1,1.18996]
[1760040937235,3.98092317,4335.2,4335.1,0.775]
[1760040937838,3.74992317,4335.2,4335.1,0.775]
[1760040938236,3.98092317,4335.2,4335.1,0.775]
[1760040938435,3.74992317,4335.2,4335.1,0.775]
[1760040938743,3.98092317,4335.2,4335.1,0.775]
[1760040939844,3.6652,4335.2,4335.1,0.775]
[1760040940041,4.53954404,4335.2,4335.1,0.775]
[1760040940835,4.53954404,4335.2,4335.1,41.575]
[1760040941037,4.53954404,4335.2,4335.1,41.0133]
[1760040941243,4.53954404,4335.2,4334.4,0.3391]
[1760040941244,12.53951894,4335.2,4334.4,0.3391]
[1760040941445,3.655,4334.6,4334.5,0.775]
[1760040941744,3.886,4334.6,4334.5,41.575]
[1760040941937,4.42799119,4334.6,4334.5,41.575]
[1760040942136,4.42799119,4334.6,4334.5,41.2359]
[1760040942137,7.71301954,4334.6,4334.5,41.2359]
[1760040942537,7.71301954,4334.6,4334.5,40.8]
[1760040942843,0.7796,4334.2,4334.1,0.00207141]
[1760040943035,1.55259119,4334.2,4334.1,0.00207141]
[1760040943337,4.5194676,4334.2,4334.1,40.80207141]
[1760040945244,4.9345176,4334.2,4334.1,40.80207141]
[1760040945943,4.9345176,4334.2,4334.1,41.11717141]
[1760040947442,4.7035176,4334.2,4334.1,41.11717141]
[1760040947644,4.9345176,4334.2,4334.1,41.11717141]
[1760040948038,4.7035176,4334.2,4334.1,41.11717141]
[1760040948239,4.9345176,4334.2,4334.1,41.11717141]
[1760040950341,4.9345176,4334.2,4334.1,40.80207141]
[1760040951241,4.7035176,4334.2,4334.1,40.80207141]
[1760040951442,4.9345176,4334.2,4334.1,40.80207141]
[1760040953549,4.9345176,4334.2,4334.1,41.11717141]
[1760040954247,3.9239176,4334.2,4334.1,41.11717141]
[1760040954444,1.18804119,4334.2,4334.1,41.53223141]
[1760040954944,0.95704119,4334.2,4334.1,41.53223141]
[1760040955145,0.54199119,4334.2,4334.1,41.53223141]
[1760040955350,3.84502,4334.6,4334.5,0.8817]
[1760040955548,4.61632945,4334.6,4334.5,0.8817]
[1760040956746,3.74810945,4334.6,4334.5,0.8817]
[1760040957252,3.2078,4334.6,4334.5,0.8817]
[1760040958343,3.2078,4334.6,4334.5,41.6817]
[1760040959647,3.2078,4335.1,4335.0,0.1295]
[1760040959851,4.2013192,4335.1,4335.0,0.8817]
[1760040960148,7.54636624,4335.1,4335.0,0.8817]
[1760040960447,0.9134,4334.5,4334.4,0.5262]
[1760040960653,4.8925192,4334.5,4334.4,0.5262]
[1760040960847,7.88846764,4334.5,4334.4,0.2111]
[1760040961254,7.34814844,4334.5,4334.4,0.2111]
[1760040961449,7.88843139,4334.5,4334.4,41.0111]
[1760040962248,8.30345139,4334.5,4334.4,41.0111]
[1760040965950,8.30345139,4334.5,4334.4,41.3433]
[1760040966453,12.88843139,4334.5,4334.1,0.00207141]
[1760040966646,1.19635,4334.2,4334.1,0.00207141]
[1760040966842,1.96763295,4334.2,4334.1,0.00207141]
[1760040967048,4.93778176,4334.2,4334.1,40.80207141]
[1760040969155,1.32296,4333.0,4332.0,2.82856559]
[1760040969353,1.32296,4333.0,4332.9,0.4653795]
[1760040969354,4.61364295,4333.0,4332.9,0.4653795]
[1760040969550,8.18249587,4333.0,4332.9,41.2653795]
[1760040969751,8.30899587,4333.0,4332.9,40.8230795]
[1760040969951,8.30899587,4333.0,4332.9,0.0230795]
[1760040970154,8.30899587,4333.0,4332.9,0.02505973]
[1760040977658,7.61089587,4333.0,4332.9,0.79955973]
[1760040977865,7.64221292,4333.0,4332.9,0.79955973]
[1760040978362,7.41121292,4333.0,4332.9,0.79955973]
[1760040978563,3.2078,4333.0,4332.9,1.21472973]
[1760040978759,3.85396,4333.0,4332.9,1.21472973]
[1760040979063,0.64616,4333.0,4332.9,1.21472973]
[1760040979264,0.64616,4333.0,4332.9,42.01472973]
[1760040979456,0.231,4333.0,4332.9,42.01472973]
[1760040979662,0.64616,4333.0,4332.9,42.01472973]
[1760040981964,3.2078,4333.5,4333.0,0.1389]
[1760040982169,3.85391,4333.5,4333.4,0.7745]
[1760040982660,3.2078,4333.5,4333.4,0.7745]
[1760040983258,3.2078,4333.5,4333.4,41.5745]
[1760040983666,3.62291,4333.5,4333.4,41.98962]
[1760040983866,0.41511,4333.5,4333.4,41.98962]
[1760040984165,0.231,4333.6,4333.5,1.32851]
[1760040984463,3.2078,4334.1,4334.0,0.9134]
[1760040984666,3.4388,4334.1,4334.0,0.9134]
[1760040985267,3.6582,4334.1,4334.0,41.7134]
[1760040986469,3.9988,4334.1,4334.0,41.5745]
[1760040987164,3.7678,4334.1,4334.0,41.5745]
[1760040987372,3.9988,4334.1,4334.0,41.5745]
[1760040988167,3.7678,4334.1,4334.0,41.5745]
[1760040988369,3.9988,4334.1,4334.0,41.5745]
[1760040988570,3.7678,4334.1,4334.0,41.5745]
[1760040988870,3.9988,4334.1,4334.0,41.5745]
[1760040989059,3.2078,4334.1,4334.0,41.7134]
[1760040989369,3.4388,4334.1,4334.0,42.12847]
[1760040990062,3.2078,4334.1,4334.0,42.12847]
[1760040990367,3.4388,4334.1,4334.0,42.12847]
[1760040990862,3.4388,4334.1,4334.0,41.7134]
[1760040991369,3.7794,4334.1,4334.0,41.7134]
[1760040992069,3.5484,4334.1,4334.0,41.7134]
[1760040992270,3.7794,4334.1,4334.0,41.7134]
[1760040992570,3.5484,4334.1,4334.0,41.7134]
[1760040992868,3.7794,4334.1,4334.0,41.7134]
[1760040993070,4.08744536,4334.1,4334.0,41.5745]
[1760040993264,4.31844536,4334.1,4334.0,41.5745]
[1760040993867,4.31844536,4334.1,4334.0,41.2423]
[1760040994063,7.38246825,4334.1,4334.0,40.8]
[1760040994267,7.38246825,4334.1,4333.4,0.3322]
[1760040994467,0.7813,4333.5,4333.4,0.7745]
[1760040994667,1.0123,4333.5,4333.4,0.7745]
[1760040994870,1.0123,4333.5,4333.4,41.98962]
[1760040995068,0.4504,4333.5,4333.4,41.98962]
[1760040996567,0.231,4333.5,4333.4,41.98962]
[1760041000167,0.7836,4334.0,4333.9,0.7986]
[1760041000377,1.55379224,4334.0,4333.9,0.7986]
[1760041000672,4.58176963,4334.0,4333.9,0.7986]
[1760041002069,4.35076963,4334.0,4333.9,0.7986]
[1760041002274,4.01756963,4334.0,4333.9,0.7986]
[1760041003279,0.53919224,4334.0,4333.9,1.21368]
[1760041003568,0.53919224,4334.0,4333.9,1.44468]
[1760041003872,3.2078,4334.1,4334.0,1.34967]
[1760041004073,0.231,4334.5,4334.3,0.41503]
[1760041004267,0.53957793,4334.4,4334.3,1.21363]
[1760041005768,0.53957793,4334.4,4334.3,1.44463]
[1760041006574,3.2078,4335.1,4335.0,0.78217]
[1760041006871,3.74770975,4335.1,4335.0,1.34027]
[1760041007174,3.4388,4335.7,4335.6,0.64631]
[1760041007476,3.97877963,4335.7,4335.6,1.20441]
[1760041007879,0.53997963,4335.7,4335.6,42.00441]
[1760041008573,0.00269642,4335.9,4335.8,1.20439]
[1760041008771,0.54253282,4335.9,4335.8,1.20439]
[1760041008976,0.00269642,4335.9,4335.8,1.20439]
[1760041009176,0.00269642,4335.9,4335.8,42.00439]
[1760041010379,0.32609642,4335.9,4335.8,41.5895]
[1760041011869,0.00269642,4335.9,4335.8,41.5895]
[1760041012072,0.32609642,4335.9,4335.8,41.5895]
[1760041012473,0.2098,4335.4,4335.3,0.7895]
[1760041012669,3.6412,4335.4,4335.3,0.7895]
[1760041012979,3.6412,4335.4,4335.3,41.5895]
[1760041014374,3.2078,4335.4,4335.3,41.5895]
[1760041018382,3.2078,4335.4,4335.3,42.00444]
[1760041021688,3.2078,4335.4,4335.3,41.5895]
[1760041021689,3.5312,4335.4,4335.3,41.5895]
[1760041021882,3.5312,4335.4,4335.3,41.241]
[1760041022088,3.7622,4335.4,4335.3,41.5895]
[1760041022478,3.4388,4335.4,4335.3,42.00444]
[1760041023289,3.7622,4335.4,4335.3,42.00444]
[1760041023690,3.7622,4335.4,4335.3,41.5895]
[1760041023987,0.4334,4335.1,4335.0,0.2314]
[1760041024182,0.6644,4335.1,4335.0,0.5799]
[1760041024588,0.9878,4335.1,4335.0,0.5799]
[1760041024983,4.04447365,4335.1,4335.0,0.5799]
[1760041025188,0.4334,4334.9,4334.8,40.8]
[1760041025485,7.25227365,4334.9,4334.8,41.1485]
[1760041026186,7.02127365,4334.9,4334.8,41.1485]
[1760041026388,3.2078,4334.9,4334.8,41.56349]
[1760041026691,3.4388,4334.9,4334.8,41.56349]
[1760041027083,3.7617,4334.9,4334.8,41.1485]
[1760041028389,3.7617,4334.9,4334.8,40.8]
[1760041028791,12.36859329,4334.9,4334.8,40.8]
[1760041029091,12.36859329,4334.9,4334.0,0.136]
[1760041029092,0.765,4334.1,4334.0,0.7872]
[1760041029291,0.996,4334.1,4334.0,1.20227]
[1760041029994,0.996,4334.1,4334.0,42.13467]
[1760041030792,3.2078,4334.3,4334.0,42.13467]
[1760041030995,3.2078,4334.3,4334.2,1.20225]
[1760041031593,0.231,4334.5,4334.4,0.86303]
[1760041031895,3.427,4334.8,4334.7,1.2022]
[1760041032085,3.658,4334.8,4334.7,1.2022]
[1760041032285,7.24465169,4334.8,4334.7,1.2022]
[1760041032690,7.01365169,4334.8,4334.7,1.2022]
[1760041033094,7.24465169,4334.8,4334.7,1.2022]
[1760041033795,7.01365169,4334.8,4334.7,1.2022]
[1760041033997,3.2078,4334.8,4334.7,1.2022]
[1760041034700,3.2078,4334.8,4334.7,42.0022]
[1760041037801,0.231,4335.0,4334.9,0.86298]
[1760041038001,0.77121918,4335.0,4334.9,1.20218]
[1760041038999,3.2078,4335.3,4335.2,0.41495]
[1760041039199,3.2078,4335.3,4335.2,0.86295]
[1760041039404,3.74823256,4335.3,4335.2,1.20215]
[1760041041104,3.96743256,4335.3,4335.2,1.20215]
[1760041041307,3.96743256,4335.3,4335.2,42.00215]
[1760041042103,3.74823256,4335.3,4335.2,42.00215]
[1760041044105,0.5687,4335.0,4334.9,0.41498]
[1760041044307,1.66303256,4335.0,4334.9,0.41498]
[1760041044507,0.4421,4334.8,4334.7,0.64479]
[1760041044703,4.74423256,4334.8,4334.7,40.8]
[1760041044902,12.72147852,4334.8,4333.8,0.3392]
[1760041045102,12.72147852,4334.8,4333.7,3.2078]
[1760041045103,0.4421,4334.2,4334.1,0.86305]
[1760041045307,0.996,4334.2,4334.1,0.86305]
[1760041045506,0.996,4334.2,4334.1,41.66305]
[1760041045706,0.996,4334.2,4334.1,42.00225]
[1760041046204,0.996,4334.2,4334.1,41.5872]
[1760041046408,7.74469887,4334.2,4334.1,41.248]
[1760041046606,7.74469887,4334.2,4334.1,40.8]
[1760041047507,7.74469887,4334.2,4333.5,0.3392]
[1760041047508,0.4421,4333.6,4333.5,0.3392]
[1760041047708,1.53685746,4333.6,4333.5,0.3392]
[1760041047909,1.53685746,4333.6,4333.5,41.369]
[1760041049618,4.48073781,4333.6,4333.5,40.8]
[1760041049906,0.8916,4333.0,4332.9,0.02505973]
[1760041050112,4.3304,4333.0,4332.9,0.02505973]
[1760041050409,7.29124861,4333.0,4332.9,40.82505973]
[1760041051712,7.70640861,4333.0,4332.9,40.82505973]
[1760041052512,6.93364861,4333.0,4332.9,41.16425973]
[1760041052813,6.84174861,4333.0,4332.9,41.16425973]
[1760041053013,7.16464861,4333.0,4332.9,41.16425973]
[1760041053810,6.93364861,4333.0,4332.9,41.16425973]
[1760041054207,6.84174861,4333.0,4332.9,41.16425973]
[1760041054514,7.16464861,4333.0,4332.9,41.16425973]
[1760041054715,7.29124861,4333.0,4332.9,40.82505973]
[1760041055815,7.70640861,4333.0,4332.9,40.82505973]
[1760041064219,1.18837,4331.9,4331.8,0.3411]
[1760041064423,1.18838,4331.8,4331.7,1.20789]
[1760041064626,1.18838,4331.8,4331.7,42.00789]
[1760041065128,1.190537,4331.8,4331.7,42.00968682]
[1760041065520,0.775257,4331.8,4331.7,42.00968682]
[1760041065729,0.233157,4331.8,4331.7,42.00968682]
[1760041066028,0.579757,4331.8,4331.7,42.00968682]
[1760041066230,0.995037,4331.8,4331.7,42.00968682]
[1760041067134,0.579757,4331.8,4331.7,42.00968682]
[1760041067429,0.233157,4331.8,4331.7,42.00968682]
[1760041068433,0.648437,4331.8,4331.7,42.00968682]
[1760041068632,0.995037,4331.8,4331.7,41.59439682]
[1760041068830,0.995037,4331.8,4331.7,42.00968682]
[1760041069026,3.9985811,4331.8,4331.7,40.80179682]
[1760041070622,4.4414811,4331.8,4331.7,0.00179682]
[1760041070825,9.4414811,4331.8,4331.7,0.00179682]
[1760041071034,9.98098621,4331.8,4331.7,0.00179682]
[1760041071535,1.20492,4330.3,4330.2,3.7569]
[1760041071729,0.7895,4330.3,4330.2,3.9807]
[1760041072132,3.76845129,4330.3,4330.2,44.7807]
[1760041072330,3.42185129,4330.3,4330.2,44.7807]
[1760041072534,0.7895,4331.0,4330.9,1.18826]
[1760041072827,3.99945129,4331.0,4330.9,1.18826]
[1760041073030,0.4429,4330.7,4330.6,0.5491]
[1760041073234,0.6739,4330.7,4330.6,1.18829]
[1760041074837,0.4429,4330.7,4330.6,1.18829]
[1760041075035,0.6739,4330.7,4330.6,1.18829]
[1760041075831,0.4429,4330.7,4330.6,1.18829]
[1760041076029,0.7895,4330.7,4330.6,1.18829]
[1760041076230,1.0205,4330.7,4330.6,1.18829]
[1760041076426,0.3466,4331.0,4330.9,0.41536]
[1760041076731,0.2123,4331.2,4331.1,1.18824]
[1760041077030,3.80494566,4331.2,4331.1,1.18824]
[1760041077639,3.57394566,4331.2,4331.1,1.18824]
[1760041077837,3.80494566,4331.2,4331.1,1.18824]
[1760041078038,3.80494566,4331.2,4331.1,41.98824]
[1760041078938,3.57394566,4331.2,4331.1,41.98824]
[1760041079231,3.45834566,4331.2,4331.1,41.98824]
[1760041079434,3.80494566,4331.2,4331.1,41.98824]
[1760041080337,3.57394566,4331.2,4331.1,41.98824]
[1760041080832,3.80494566,4331.2,4331.1,41.98824]
[1760041081139,3.45834566,4331.2,4331.1,41.98824]
[1760041081537,3.22734566,4331.2,4331.1,41.98824]
[1760041081933,3.24604566,4331.2,4331.1,41.98824]
[1760041082135,0.5589,4331.5,4331.4,1.18822]
[1760041082438,3.70210126,4331.5,4331.4,1.18822]
[1760041082638,3.93310126,4331.5,4331.4,1.18822]
[1760041082840,0.75270135,4331.5,4331.4,1.18822]
[1760041083135,0.7899,4331.5,4331.4,1.18822]
[1760041083334,0.7899,4331.5,4331.4,41.98822]
[1760041083836,3.2078,4331.7,4331.6,1.1882]
[1760041084141,3.4388,4331.7,4331.6,1.1882]
[1760041084342,4.7688677,4331.7,4331.6,1.1882]
[1760041084738,0.89631,4331.5,4331.4,40.8]
[1760041084937,1.20482,4331.3,4331.2,0.41533]
[1760041085141,1.43582,4331.3,4331.2,0.41533]
[1760041085437,4.4068216,4331.3,4331.2,40.8]
[1760041085744,4.94747676,4331.3,4331.2,40.8]
[1760041086645,4.53215676,4331.3,4331.2,41.21533]
[1760041087038,4.30115676,4331.3,4331.2,41.54443]
[1760041087238,3.9915016,4331.3,4331.2,41.54443]
[1760041087544,4.53229543,4331.3,4331.2,41.54443]
[1760041087744,3.95469543,4331.3,4331.2,41.54443]
[1760041088041,3.2020016,4331.3,4331.2,41.54443]
[1760041088546,2.9710016,4331.3,4331.2,41.54443]
[1760041088747,0.2227,4331.6,4331.5,1.31731]
[1760041089046,3.96588365,4331.6,4331.5,1.31731]
[1760041089248,3.73488365,4331.6,4331.5,1.31731]
[1760041089449,0.76358571,4331.6,4331.5,1.31731]
[1760041089743,0.002157,4331.8,4331.7,0.63609]
[1760041089949,0.002157,4331.8,4331.7,1.18799]
[1760041090150,3.4305,4332.7,4332.6,1.1879]
[1760041090446,0.77219173,4332.7,4332.6,41.9879]
[1760041090643,0.54119173,4332.7,4332.6,41.9879]
[1760041091049,0.54353417,4332.7,4332.6,41.9879]
[1760041093644,7.16438392,4332.7,4332.6,40.8]
[1760041094848,0.4356,4332.6,4332.5,0.63601]
[1760041095048,1.32049173,4332.6,4332.5,0.96511]
[1760041095348,4.35876823,4332.6,4332.5,41.76511]
[1760041095744,4.58976823,4332.6,4332.5,41.43601]
[1760041095945,5.00496823,4332.6,4332.5,40.8]
[1760041096648,5.00496823,4332.6,4332.4,0.41522]
[1760041096849,1.11379173,4332.5,4332.4,0.41522]
[1760041097050,1.45749173,4332.5,4332.4,0.41522]
[1760041097251,4.48138359,4332.5,4332.4,0.41522]
[1760041098956,4.48138359,4332.5,4332.4,0.63602]
[1760041099255,4.48138359,4332.5,4332.4,0.96512]
[1760041099548,4.48138359,4332.5,4332.4,1.18792]
[1760041099549,0.54119173,4332.5,4332.4,1.18792]
[1760041100254,0.4537,4332.6,4332.5,0.98811]
[1760041100453,0.4537,4332.6,4332.5,1.31721]
[1760041100655,1.0103,4332.6,4332.5,1.31721]
[1760041101360,3.21014244,4332.7,4332.6,1.1879]
[1760041101552,3.44114244,4332.7,4332.6,1.1879]
[1760041101855,3.66384244,4332.7,4332.6,1.1879]
[1760041102454,3.21014244,4332.7,4332.6,1.1879]
[1760041102654,3.44114244,4332.7,4332.6,1.1879]
[1760041104054,0.23334244,4332.7,4332.6,1.1879]
[1760041106959,0.00234244,4332.7,4332.6,1.1879]
[1760041107159,0.23334244,4332.7,4332.6,1.1879]
[1760041107556,0.45604244,4332.7,4332.6,1.1879]
[1760041108260,0.22504244,4332.7,4332.6,1.1879]
[1760041109162,0.00234244,4332.7,4332.6,4.3957]
[1760041109963,0.00234244,4332.7,4332.6,45.1957]
[1760041110261,0.00234244,4332.7,4332.6,41.9879]
[1760041113471,0.00234244,4332.7,4332.6,45.1957]
[1760041113767,3.7742,4333.6,4333.5,1.18781]
[1760041114058,4.52851659,4333.6,4333.5,1.18781]
[1760041114562,4.52851659,4333.6,4333.5,41.98781]
[1760041114759,4.53049395,4333.6,4333.5,41.9906626]
[1760041114957,4.53049395,4333.6,4333.5,42.1199626]
[1760041115859,7.90798496,4333.6,4333.5,41.2464526]
[1760041116061,7.90798496,4333.6,4333.5,0.0028526]
[1760041116460,0.5759,4333.0,4332.5,0.1293]
[1760041116766,7.7206883,4332.9,4332.8,0.41518]
[1760041116954,7.7206883,4332.9,4332.8,41.21518]
[1760041117458,7.7206883,4332.9,4332.8,41.53947014]
[1760041119566,0.54141659,4332.9,4332.8,41.53947014]
[1760041119872,3.2078,4333.4,4333.3,0.96143]
[1760041120164,3.2078,4333.4,4333.3,1.41943]
[1760041121169,0.00197736,4333.6,4333.5,1.00461]
[1760041121467,0.00197736,4333.6,4333.5,1.32721]
[1760041121664,0.54462794,4333.6,4333.5,1.55821]
[1760041122262,0.00197736,4333.6,4333.5,1.55821]
[1760041122462,0.00197736,4333.6,4333.5,6.55821]
[1760041122666,3.2078,4333.9,4333.8,0.41509]
[1760041122868,3.2078,4333.9,4333.8,1.41939]
[1760041123366,3.2078,4333.9,4333.8,42.21939]
[1760041123768,3.20996564,4333.9,4333.8,42.21939]
[1760041126470,0.00216564,4333.9,4333.8,42.21939]
[1760041126969,0.00216564,4333.9,4333.8,42.23116289]
[1760041135166,0.32016564,4333.9,4333.8,42.00016289]
[1760041135967,0.75009275,4334.2,4334.1,0.64546]
[1760041136165,1.29158714,4334.2,4334.1,0.98256]
[1760041136368,4.28753599,4334.2,4334.1,0.98256]
[1760041137071,4.2894299,4334.2,4334.1,0.98256]
[1760041137274,4.2894299,4334.2,4334.1,1.21026]
[1760041139374,3.98103715,4334.2,4334.1,1.21026]
[1760041140474,4.29903715,4334.2,4334.1,1.21026]
[1760041143471,0.5433883,4334.2,4334.1,1.21026]
[1760041143774,0.00189391,4334.2,4334.1,1.21026]
[1760041145574,4.3087512,4334.2,4334.1,1.21026]
[1760041146276,4.5397512,4334.2,4334.1,0.41506]
[1760041148584,0.9421,4334.0,4333.9,0.41507]
[1760041148785,0.3463,4333.6,4333.1,0.5763]
[1760041148979,0.8042,4333.3,4333.2,0.5625]
[1760041149185,1.34631071,4333.3,4333.2,41.3625]
[1760041149687,4.40744387,4333.3,4333.2,41.77764]
[1760041149984,4.40744387,4333.3,4333.2,41.43234]
[1760041151385,4.40744387,4333.3,4333.2,41.77764]
[1760041151386,0.54211071,4333.3,4333.2,41.77764]
[1760041151586,0.54211071,4333.3,4333.2,44.98544]
[1760041151781,1.24437516,4334.2,4334.1,0.63226]
[1760041151782,0.80609391,4334.2,4334.1,0.63226]
[1760041151987,1.54968997,4334.2,4334.1,0.63226]
[1760041152188,4.57479847,4334.2,4334.1,0.63226]
[1760041153084,4.98984847,4334.2,4334.1,0.63226]
[1760041153683,4.57479847,4334.2,4334.1,0.63226]
[1760041154689,4.38479847,4334.2,4334.1,0.63226]
[1760041154888,4.61579847,4334.2,4334.1,0.63226]
[1760041155590,0.9421,4334.0,4333.9,0.41507]
[1760041155785,1.72669606,4334.0,4333.9,0.41507]
[1760041155984,4.66440151,4334.0,4333.9,0.41507]
[1760041156292,0.3463,4333.9,4333.7,0.41509]
[1760041156486,4.56559606,4333.8,4333.7,1.20199]
[1760041156686,3.58330017,4333.8,4333.7,1.20199]
[1760041156890,0.55359606,4333.8,4333.7,1.20199]
[1760041157090,0.78459606,4333.8,4333.7,1.20199]
[1760041157286,1.36299606,4333.8,4333.7,1.20199]
[1760041157589,1.24249606,4333.8,4333.7,1.20199]
[1760041157889,1.01669606,4333.8,4333.7,1.20199]
[1760041158089,0.55359606,4333.8,4333.7,1.20199]
[1760041159485,0.23289391,4334.2,4333.7,1.20199]
[1760041159486,0.00189391,4334.2,4334.1,0.41506]
[1760041159687,0.78851686,4334.2,4334.1,1.20196]
[1760041160088,0.78851686,4334.2,4334.1,42.00196]
[1760041162687,0.55751686,4334.2,4334.1,42.00196]
[1760041162888,0.90381686,4334.2,4334.1,42.00196]
[1760041163987,0.55751686,4334.2,4334.1,42.00196]
[1760041168199,1.13481686,4334.2,4334.1,42.00196]
[1760041168898,0.90381686,4334.2,4334.1,42.00196]
[1760041169098,1.13481686,4334.2,4334.1,42.00196]
[1760041169495,0.55751686,4334.2,4334.1,42.00196]
[1760041169698,0.78851686,4334.2,4334.1,42.00196]
[1760041171199,0.55751686,4334.2,4334.1,42.00196]
[1760041172795,0.55751686,4334.2,4334.1,40.8]
[1760041172796,3.87651312,4334.2,4334.1,40.8]
[1760041173004,0.8042,4333.8,4333.7,0.97759]
[1760041173196,1.59082295,4333.8,4333.7,0.97759]
[1760041173397,1.35982295,4333.8,4333.7,1.20199]
[1760041173596,1.59082295,4333.8,4333.7,1.20199]
[1760041175906,4.61395543,4333.8,4333.7,1.20199]